{"text_format":"1","workbook":"xlsx","n_sheets":8,"sheets":["מטרות ויעדים ","התמונה המלאה","מאזן משפחתי","גרפים","קצבאות","טבלת עזר","מחשבון עצמאי","עצמאי "],"not_rendered":{"charts":3,"images":8,"macros":1,"external_links":0,"defined_names":3,"comments":0,"pivot_tables":0},"unopened":[],"bounds":{"document_bytes":16777216,"sheet_cells":100000,"rows_first":2000,"rows_last":500,"rows_between":2000,"halvings":0,"cell_chars":16384,"cell_head_chars":4096},"cells_cut":0,"cells_raw":0,"read":"whole","date_system":"1900"}

{"sheet":"מטרות ויעדים ","index":0,"n_rows":19,"n_cols":8,"rows_kept":19,"cut":false,"hidden":false,"merged":[[0,1,0,3]]}
[null,"מטרות ויעדים"]
[null,"מטרה /  יעד","עבור בן משפחה","הערכת סכום נדרש למימוש","מועד המימוש","כמות חודשים לחסכון","חשיבות (1-3)","הוראות"]
[{"$f":"NOW()","v":"2025-10-21T12:50:29.770"},null,null,null,null,{"$f":"DATEDIF($A$3,E3,\"m\")","v":{"$error":"#NUM!"}}]
[null,null,null,null,null,{"$f":"DATEDIF($A$3,E4,\"m\")","v":{"$error":"#NUM!"}},null,"רישמו את המטרות / יעדים / חלומות אשר אתם רוצים לממש "]
[null,null,null,null,null,{"$error":"#NUM!"},null,"(בר מצווה, טיסות, טיפולי שיניים..)"]
[null,null,null,null,null,{"$error":"#NUM!"},null,"העריכו את עלות המטרה ורישמו"]
[null,null,null,null,null,{"$error":"#NUM!"},null,"העריכו עד כמה חשוב לכם לממש את המטרה (1 - הכי חשוב, 3 -  לא ממש חשוב)"]
[null,null,null,null,null,{"$error":"#NUM!"}]
[null,null,null,null,null,{"$error":"#NUM!"}]
[null,null,null,null,null,{"$error":"#NUM!"}]
[null,null,null,null,null,{"$error":"#NUM!"}]
[null,null,null,null,null,{"$error":"#NUM!"}]
[null,null,null,null,null,{"$error":"#NUM!"}]
[null,null,null,null,null,{"$error":"#NUM!"}]
[null,null,null,null,null,{"$error":"#NUM!"}]
[null,null,null,null,null,{"$error":"#NUM!"}]
[null,null,null,null,null,{"$error":"#NUM!"}]
[null,null,null,null,null,{"$error":"#NUM!"}]
[null,null,null,null,null,{"$error":"#NUM!"}]

{"sheet":"התמונה המלאה","index":1,"n_rows":17,"n_cols":7,"rows_kept":17,"cut":false,"hidden":false,"merged":[]}
[]
[]
[null,"תקשורת",{"$f":"SUM('מאזן משפחתי'!G18:G23)/'מאזן משפחתי'!$G$108","v":{"$error":"#DIV/0!"}},null,null,"דיור",{"$f":"C4","v":{"$error":"#DIV/0!"}}]
[null,"דיור",{"$f":"SUM('מאזן משפחתי'!G24:G33)/'מאזן משפחתי'!$G$108","v":{"$error":"#DIV/0!"}},null,null,"היערכות לסיכונים - ביטוחים וחסכון",{"$f":"C6+C9","v":{"$error":"#DIV/0!"}}]
[null,"ילדים וחינוך",{"$f":"SUM('מאזן משפחתי'!G34:G42)/'מאזן משפחתי'!$G$108","v":{"$error":"#DIV/0!"}},null,null,"צריכה שוטפת",{"$f":"C7+C14+C11+C5+C3+C10+C12+C13+C16","v":{"$error":"#DIV/0!"}}]
[null,"ביטוחים",{"$f":"SUM('מאזן משפחתי'!G43:G47)/'מאזן משפחתי'!$G$108","v":{"$error":"#DIV/0!"}},null,null,"עלות הכסף",{"$f":"C8","v":{"$error":"#DIV/0!"}}]
[null,"תחבורה",{"$f":"SUM('מאזן משפחתי'!G48:G51)/'מאזן משפחתי'!$G$108","v":{"$error":"#DIV/0!"}},null,null,"תרבות ופנאי",{"$f":"C15","v":{"$error":"#DIV/0!"}}]
[null,"עלויות מימון",{"$f":"SUM('מאזן משפחתי'!G52:G57)/'מאזן משפחתי'!$G$108","v":{"$error":"#DIV/0!"}},null,null,"עסק עצמאי",{"$f":"C17","v":{"$error":"#DIV/0!"}}]
[null,"חסכון",{"$f":"SUM('מאזן משפחתי'!G58:G61)/'מאזן משפחתי'!$G$108","v":{"$error":"#DIV/0!"}}]
[null,"שונות - חצי קבועות",{"$f":"SUM('מאזן משפחתי'!G62:G69)/'מאזן משפחתי'!$G$108","v":{"$error":"#DIV/0!"}}]
[null,"קניות",{"$f":"SUM('מאזן משפחתי'!G73:G76)/'מאזן משפחתי'!$G$108","v":{"$error":"#DIV/0!"}}]
[null,"טיפוח ויופי",{"$f":"SUM('מאזן משפחתי'!G77:G79)/'מאזן משפחתי'!$G$108","v":{"$error":"#DIV/0!"}}]
[null,"הוצאות רפואיות",{"$f":"SUM('מאזן משפחתי'!G80:G81)/'מאזן משפחתי'!$G$108","v":{"$error":"#DIV/0!"}}]
[null,"רכב",{"$f":"SUM('מאזן משפחתי'!G82:G84)/'מאזן משפחתי'!$G$108","v":{"$error":"#DIV/0!"}}]
[null,"תרבות ופנאי",{"$f":"SUM('מאזן משפחתי'!G85:G89)/'מאזן משפחתי'!$G$108","v":{"$error":"#DIV/0!"}}]
[null,"שונות",{"$f":"SUM('מאזן משפחתי'!G90:G93)/'מאזן משפחתי'!$G$108","v":{"$error":"#DIV/0!"}}]
[null,"עסק עצמאי",{"$f":"SUM('מאזן משפחתי'!G102:G105)/'מאזן משפחתי'!$G$108","v":{"$error":"#DIV/0!"}}]

{"sheet":"מאזן משפחתי","index":2,"n_rows":116,"n_cols":13,"rows_kept":116,"cut":false,"hidden":false,"merged":[[105,1,105,2],[91,1,94,1],[97,1,104,1],[95,1,95,2],[51,1,56,1],[69,1,69,2],[71,1,71,9],[57,1,59,1],[60,1,61,1],[62,1,68,1],[72,1,76,1],[77,1,80,1],[81,1,82,1],[83,1,85,1],[86,1,90,1],[17,1,22,1],[23,1,32,1],[33,1,41,1],[42,1,46,1],[47,1,50,1],[0,1,3,9],[7,1,7,9],[13,1,13,2],[15,1,15,9],[16,1,16,9]]}
[null,"מאזן משפחתי - משפחת XX"]
[]
[]
[null,null,null,null,null,null,null,null,null,null,null,null,"הוראות"]
[]
[null,null,null,"חודש 1","חודש 2","חודש 3","חודש טיפוסי","בשנה","ציון ב%","הערות",null,null,"כיצד אנו בונים את המאזן המשפחתי?"]
[null,null,"מאזן חודשי",{"$f":"D14-D108","v":0},{"$f":"E14-E108","v":0},0,{"$error":"#DIV/0!"},null,"כמה ניתן לחסוך",null,null,null,"נכנסים לחשבון הבנק או לחשבונות הבנק, מתסכלים חודשיים אחורה (חודשים מלאים) ורושמים בכל סעיף את ההוצאה האמיתית."]
[null,"הכנסות",null,null,null,null,null,null,null,null,null,1,"חושבים על המזומן שאתם מוציאים (עוזרת, שעורים פרטים) ומוסיפים"]
[null,null,"הכנסה 1 (משכורת)",null,null,null,{"$f":"AVERAGE(D9:F9)","v":{"$error":"#DIV/0!"}},{"$f":"G9*12","v":{"$error":"#DIV/0!"}},null,null,null,0.9,"מהות רכיבי הוצאות המאזן"]
[null,null,"הכנסה 2 (משכורת) ",null,null,null,{"$f":"AVERAGE(D10:F10)","v":{"$error":"#DIV/0!"}},{"$f":"G10*12","v":{"$error":"#DIV/0!"}},null,null,null,0.8,"חודש 1 - הוצאות חודש ראשון מורכבות מבנק וכרטיסי אשראי."]
[null,null,"הכנסה עסק עצמאי",null,null,null,{"$f":"AVERAGE(D11:F11)","v":{"$error":"#DIV/0!"}},{"$f":"G11*12","v":{"$error":"#DIV/0!"}}]
[null,null,"הכנסה משכ\"ד",null,null,null,{"$f":"AVERAGE(D12:F12)","v":{"$error":"#DIV/0!"}},{"$f":"G12*12","v":{"$error":"#DIV/0!"}}]
[null,null,"קצבת ילדים",null,null,null,{"$f":"AVERAGE(D13:F13)","v":{"$error":"#DIV/0!"}},{"$f":"G13*12","v":{"$error":"#DIV/0!"}},null,null,null,0.6,"יש לשים לב לחשבונות אשר משולמים פעם בחודשיים"]
[null," סה\"כ הכנסות",null,{"$f":"SUM(D9:D13)","v":0},{"$f":"SUM(E9:E13)","v":0},0,{"$error":"#DIV/0!"},{"$f":"SUM(H9:H13)","v":{"$error":"#DIV/0!"}},null,null,null,0.5,"כל שורה בחשבון הבנק בחודשיים הללו - צריכה לבוא לידי ביטוי בטבלת המאזן"]
[null,null,null,null,null,null,null,null,null,null,null,0.4]
[null,"הוצאות  ",null,null,null,null,null,null,null,null,null,0.3,"\"ציון\" לסעיפי ההוצאה - דרוג הסעיף, עד כמה חשוב לכם הסעיף / עד כמה קשיח (בסולם 0-100 בדילוג של עשרות)"]
[null,"הוצאות קבועות",null,null,null,null,null,null,null,null,null,0.2,"לדוגמה: הוצאות הכבלים, אפשר לעבור לחבילה זולה יותר, ההוצאה אחרי המעבר תהיה 70% מההוצאה היום. > רושמים 70% בעמודה"]
[null,"תקשורת","תקשורת - טלפונים",null,null,null,{"$f":"AVERAGE(D18:F18)","v":{"$error":"#DIV/0!"}},{"$f":"G18*12","v":{"$error":"#DIV/0!"}},null,null,null,0.1]
[null,null,"תשתית אנטרנט",null,null,null,{"$error":"#DIV/0!"},{"$error":"#DIV/0!"},null,null,null,0]
[null,null,"ספק אינטרנט",null,null,null,{"$error":"#DIV/0!"},{"$error":"#DIV/0!"}]
[null,null,"כבלים/לווין",null,null,null,{"$error":"#DIV/0!"},{"$error":"#DIV/0!"}]
[null,null,"עיתונים",null,null,null,{"$error":"#DIV/0!"},{"$error":"#DIV/0!"},null,null,null,null,"הערה טכנית"]
[null,null,"אפליקציות",null,null,null,{"$error":"#DIV/0!"},{"$error":"#DIV/0!"},null,null,null,null,"נא לא להוסיף / למחוק שורות בטבלה"]
[null,"דיור","חשמל",null,null,null,{"$error":"#DIV/0!"},{"$error":"#DIV/0!"},null,null,null,null,"במקרים שבהם שמות רכיבי ההוצאה המופיע בטבלה לא רלונטיים עבורכם - מוזמנים לשנות לשם המתאים "]
[null,null,"ארנונה",null,null,null,{"$error":"#DIV/0!"},{"$error":"#DIV/0!"}]
[null,null,"גז",null,null,null,{"$error":"#DIV/0!"},{"$error":"#DIV/0!"}]
[null,null,"מים",null,null,null,{"$error":"#DIV/0!"},{"$error":"#DIV/0!"}]
[null,null,"שכר דירה",null,null,null,{"$error":"#DIV/0!"},{"$error":"#DIV/0!"}]
[null,null,"משכנתא",null,null,null,{"$error":"#DIV/0!"},{"$error":"#DIV/0!"}]
[null,null,"ועד בית/ מיסי ישוב",null,null,null,{"$error":"#DIV/0!"},{"$error":"#DIV/0!"}]
[null,null,"מוקד אבטחה",null,null,null,{"$error":"#DIV/0!"},{"$error":"#DIV/0!"}]
[null,null,"עוזרת/ גינון",null,null,null,{"$error":"#DIV/0!"},{"$error":"#DIV/0!"}]
[null,null,"אחזקת בית ותיקונים",null,null,null,{"$error":"#DIV/0!"},{"$error":"#DIV/0!"}]
[null,"ילדים וחינוך","מטפלת",null,null,null,{"$error":"#DIV/0!"},{"$error":"#DIV/0!"}]
[null,null,"מעון/גן/צהרון",null,null,null,{"$error":"#DIV/0!"},{"$error":"#DIV/0!"}]
[null,null,"בי\"ס וחומרי לימוד",null,null,null,{"$error":"#DIV/0!"},{"$error":"#DIV/0!"}]
[null,null,"חוגים",null,null,null,{"$error":"#DIV/0!"},{"$error":"#DIV/0!"}]
[null,null,"אחר",null,null,null,{"$error":"#DIV/0!"},{"$error":"#DIV/0!"}]
[null,null,"פסיכולוג/הוראה מתקנת",null,null,null,{"$error":"#DIV/0!"},{"$error":"#DIV/0!"}]
[null,null,"אוניברסיטה",null,null,null,{"$error":"#DIV/0!"},{"$error":"#DIV/0!"}]
[null,null,"מזונות",null,null,null,{"$error":"#DIV/0!"},{"$error":"#DIV/0!"}]
[null,null,"קייטנות קיץ",null,null,null,{"$error":"#DIV/0!"},{"$error":"#DIV/0!"}]
[null,"ביטוחים","קופ\"ח ביטוח משלים",null,null,null,{"$error":"#DIV/0!"},{"$error":"#DIV/0!"}]
[null,null,"ביטוח רפואי וסיעודי פרטי",null,null,null,{"$error":"#DIV/0!"},{"$error":"#DIV/0!"}]
[null,null,"ביטוח חיים",null,null,null,{"$error":"#DIV/0!"},{"$error":"#DIV/0!"}]
[null,null,"ביטוח דירה",null,null,null,{"$error":"#DIV/0!"},{"$error":"#DIV/0!"}]
[null,null,"ביטוח משכנתא",null,null,null,{"$error":"#DIV/0!"},{"$error":"#DIV/0!"}]
[null,"רכב ותחבורה","ביטוח רכב מקיף וחובה",null,null,null,{"$error":"#DIV/0!"},{"$error":"#DIV/0!"}]
[null,null,"טיפולים ורישוי",null,null,null,{"$error":"#DIV/0!"},{"$error":"#DIV/0!"}]
[null,null,"ליסינג",null,null,null,{"$error":"#DIV/0!"},{"$error":"#DIV/0!"}]
[null,null,"תחבורה ציבורית",null,null,null,{"$error":"#DIV/0!"},{"$error":"#DIV/0!"}]
[null,"עליות מימון ובנק","החזרי הלוואות תלוש",null,null,null,{"$error":"#DIV/0!"},{"$error":"#DIV/0!"}]
[null,null,"החזרי הלוואות עו\"ש",null,null,null,{"$error":"#DIV/0!"},{"$error":"#DIV/0!"}]
[null,null,"חובות נוספים",null,null,null,{"$error":"#DIV/0!"},{"$error":"#DIV/0!"}]
[null,null,"הלוואות חוץ בנקאיות",null,null,null,{"$error":"#DIV/0!"},{"$error":"#DIV/0!"}]
[null,null,"ריבית חובה בבנק",null,null,null,{"$error":"#DIV/0!"},{"$error":"#DIV/0!"}]
[null,null,"עמלות בנק וכרטיסי אשראי",null,null,null,{"$error":"#DIV/0!"},{"$error":"#DIV/0!"}]
[null,"חיסכון","חסכון בלת\"מ",null,null,null,{"$error":"#DIV/0!"},{"$error":"#DIV/0!"}]
[null,null,"חסכון יציבות פיננסית",null,null,null,{"$error":"#DIV/0!"},{"$error":"#DIV/0!"}]
[null,null,"חסכונות",null,null,null,{"$error":"#DIV/0!"},{"$error":"#DIV/0!"}]
[null,"נסיעות וחופשות","נסיעות וחופשות",null,null,null,{"$error":"#DIV/0!"},{"$error":"#DIV/0!"}]
[null,null,"הוצאות בחו\"ל",null,null,null,{"$error":"#DIV/0!"},{"$error":"#DIV/0!"}]
[null,"שונות\n\"חצי קבועות\"","הוצאות חג",null,null,null,{"$error":"#DIV/0!"},{"$error":"#DIV/0!"}]
[null,null,"תרומות ומעשרות",null,null,null,{"$error":"#DIV/0!"},{"$error":"#DIV/0!"}]
[null,null,"משקפיים / עדשות",null,null,null,{"$error":"#DIV/0!"},{"$error":"#DIV/0!"}]
[null,null,"מנוי מפעל הפיס",null,null,null,{"$error":"#DIV/0!"},{"$error":"#DIV/0!"}]
[null,null,"מכון כושר/קאנטרי קלאב/ חוגים ",null,null,null,{"$error":"#DIV/0!"},{"$error":"#DIV/0!"}]
[null,null,"תמי4/נספרסו",null,null,null,{"$error":"#DIV/0!"},{"$error":"#DIV/0!"}]
[null,null,"הוצאות לא מתוכננות",null,null,null,{"$error":"#DIV/0!"},{"$error":"#DIV/0!"}]
[null," סה\"כ הוצאות קבועות",null,{"$f":"SUM(D18:D69)","v":0},{"$f":"SUM(E18:E69)","v":0},0,{"$error":"#DIV/0!"},{"$error":"#DIV/0!"}]
[]
[null,"הוצאות משתנות"]
[null,"קניות","אוכל ומוצרי מכולת",null,null,null,{"$f":"AVERAGE(D73:F73)","v":{"$error":"#DIV/0!"}},{"$f":"G73*12","v":{"$error":"#DIV/0!"}}]
[null,null,"אוכל בחוץ",null,null,null,{"$error":"#DIV/0!"},{"$error":"#DIV/0!"}]
[null,null,"סיגריות",null,null,null,{"$error":"#DIV/0!"},{"$error":"#DIV/0!"}]
[null,null,"חיות מחמד",null,null,null,{"$error":"#DIV/0!"},{"$error":"#DIV/0!"}]
[null,null,"קניות פארם",null,null,null,{"$error":"#DIV/0!"},{"$error":"#DIV/0!"}]
[null,"טיפוח ויופי","קוסמטיקה טיפולים",null,null,null,{"$error":"#DIV/0!"},{"$error":"#DIV/0!"}]
[null,null,"קוסמטיקה מוצרים",null,null,null,{"$error":"#DIV/0!"},{"$error":"#DIV/0!"}]
[null,null,"מספרה",null,null,null,{"$error":"#DIV/0!"},{"$error":"#DIV/0!"}]
[null,null,"ביגוד והנעלה",null,null,null,{"$error":"#DIV/0!"},{"$error":"#DIV/0!"}]
[null,"הוצאות רפואיות","תרופות/רפואה משלימה",null,null,null,{"$error":"#DIV/0!"},{"$error":"#DIV/0!"}]
[null,null,"טיפולי שיניים",null,null,null,{"$error":"#DIV/0!"},{"$error":"#DIV/0!"}]
[null,"רכב ותחבורה","דלק",null,null,null,{"$error":"#DIV/0!"},{"$error":"#DIV/0!"}]
[null,null,"כביש 6 / נתיב מהיר",null,null,null,{"$error":"#DIV/0!"},{"$error":"#DIV/0!"}]
[null,null,"חניה",null,null,null,{"$error":"#DIV/0!"},{"$error":"#DIV/0!"}]
[null,"תרבות ופנאי","בילויים",null,null,null,{"$error":"#DIV/0!"},{"$error":"#DIV/0!"}]
[null,null,"ספרים/צעצועים",null,null,null,{"$error":"#DIV/0!"},{"$error":"#DIV/0!"}]
[null,null,"שמרטף",null,null,null,{"$error":"#DIV/0!"},{"$error":"#DIV/0!"}]
[null,null,"מתנות משפחתי/ ימי הולדת",null,null,null,{"$error":"#DIV/0!"},{"$error":"#DIV/0!"}]
[null,null,"מתנות לארועים",null,null,null,{"$error":"#DIV/0!"},{"$error":"#DIV/0!"}]
[null,"שונות","מוצרים לבית",null,null,null,{"$error":"#DIV/0!"},{"$error":"#DIV/0!"}]
[null,null,"לוטו הגרלות",null,null,null,{"$error":"#DIV/0!"},{"$error":"#DIV/0!"}]
[null,null,"מזומן ללא מעקב",null,null,null,{"$error":"#DIV/0!"},{"$error":"#DIV/0!"}]
[null,null,"העברות בין חשבונות",null,null,null,{"$error":"#DIV/0!"},{"$error":"#DIV/0!"}]
[null,"סה\"כ הוצאות משתנות",null,{"$f":"SUM(D73:D95)","v":0},{"$f":"SUM(E73:E95)","v":0},0,{"$error":"#DIV/0!"},{"$error":"#DIV/0!"}]
[]
[null,"עסק עצמאי","הפקדות עצמאי",null,null,null,{"$f":"AVERAGE(D98:F98)","v":{"$error":"#DIV/0!"}},{"$f":"G98*12","v":{"$error":"#DIV/0!"}}]
[null,null,"עסק עצמאי - הנהלה וכלליות",null,null,null,{"$error":"#DIV/0!"},{"$error":"#DIV/0!"}]
[null,null,"עסק עצמאי - רשויות",null,null,null,{"$error":"#DIV/0!"},{"$error":"#DIV/0!"}]
[null,null,"עסק עצמאי - תוכנות",null,null,null,{"$error":"#DIV/0!"},{"$error":"#DIV/0!"}]
[null,null,"עסק עצמאי - משכורות ",null,null,null,{"$error":"#DIV/0!"},{"$error":"#DIV/0!"}]
[null,null,"עסק עצמאי - הוצאות שונות",null,null,null,{"$error":"#DIV/0!"},{"$error":"#DIV/0!"}]
[null,null,"עסק עצמאי - ספקים",null,null,null,{"$error":"#DIV/0!"},{"$error":"#DIV/0!"}]
[null,null,"עסק עצמאי - פרסום וקידום",null,null,null,{"$error":"#DIV/0!"},{"$error":"#DIV/0!"}]
[null,"סה\"כ הוצאות עסק",null,{"$f":"SUM(D98:D105)","v":0},{"$f":"SUM(E98:E105)","v":0},0,{"$error":"#DIV/0!"},{"$error":"#DIV/0!"}]
[]
[null,null,"סה\"כ הוצאות",{"$f":"D106+D96+D70","v":0},{"$f":"E106+E96+E70","v":0},0,{"$error":"#DIV/0!"},{"$error":"#DIV/0!"}]
[]
[null,null,null,null,"חודש טיפוסי","בשנה"]
[null,null,null,"הכנסות",{"$f":"G14","v":{"$error":"#DIV/0!"}},{"$f":"E111*12","v":{"$error":"#DIV/0!"}}]
[null,null,null,"הוצאות קבועות",{"$f":"G70","v":{"$error":"#DIV/0!"}},{"$f":"E112*12","v":{"$error":"#DIV/0!"}}]
[null,null,null,"הוצאות משתנות",{"$f":"D96","v":0},0]
[null,null,null,"הוצאות עסק",{"$f":"G106","v":{"$error":"#DIV/0!"}},{"$error":"#DIV/0!"}]
[null,null,null,"סה\"כ הוצאות",{"$f":"G108","v":{"$error":"#DIV/0!"}},{"$error":"#DIV/0!"}]
[null,null,null,"עודף/ גירעון",{"$f":"E111-E115","v":{"$error":"#DIV/0!"}},{"$error":"#DIV/0!"}]

{"sheet":"גרפים","index":3,"n_rows":4,"n_cols":12,"rows_kept":4,"cut":false,"hidden":false,"merged":[]}
["הכנסות מול הוצאות",null,null,null,null,null,null,null,null,null,"הלוואות",{"$f":"#REF!+#REF!+#REF!","v":{"$error":"#REF!"}}]
[null,null,null,null,null,null,null,null,null,null,"חסכונות",{"$f":"'מאזן משפחתי'!G58+'מאזן משפחתי'!G59+'מאזן משפחתי'!G60+'מאזן משפחתי'!G61","v":{"$error":"#DIV/0!"}}]
["הכנסות",{"$f":"'מאזן משפחתי'!E111","v":{"$error":"#DIV/0!"}},null,null,null,null,null,null,null,null,"הכנסה",{"$f":"'מאזן משפחתי'!G14","v":{"$error":"#DIV/0!"}}]
["הוצאות",{"$f":"'מאזן משפחתי'!E115","v":{"$error":"#DIV/0!"}}]

{"sheet":"קצבאות","index":4,"n_rows":26,"n_cols":3,"rows_kept":26,"cut":false,"hidden":true,"merged":[[11,0,11,1],[13,0,13,1],[23,0,23,1]]}
[]
["קצבת ילדים","מספר ילדים","סכום חודשי פר ילד"]
[null,1,152]
[null,2,191]
[null,3,191]
[null,4,191]
[null,5,152]
[]
[]
[]
[]
["קצבאות"]
[]
["קצבת שארים"]
["ללא ילדים",1554]
["ילד 1 (עד גיל 24)",2283]
["שני ילדים",2975]
["כל ילד נוסף",720]
[]
[]
[]
[]
[]
["קצבת זקנה"]
["יחיד",1535]
["זוג",2307]

{"sheet":"טבלת עזר","index":5,"n_rows":121,"n_cols":3,"rows_kept":121,"cut":false,"hidden":true,"merged":[]}
["סיווג","קטגוריה","פירוט"]
["עסק"," מכירה ושיווק","הוצאות פרסום אחרות"]
["עסק"," מכירה ושיווק","קידום אתר"]
["עסק","הוצאות מימון","עמלות סליקה אשראי - לפי הערכה של 1.5%"]
["עסק","הוצאות מימון","ריביות ועמלות בנקים"]
["עסק","הכנסות","הכנסות אחרות"]
["עסק","הכנסות","מכירות"]
["עסק","הלוואות עסק","החזר הלוואה אחרים"]
["עסק","הלוואות עסק","החזר הלוואה בנקים"]
["עסק","הלוואות עסק","החזר הלוואה כרטיסי אשראי"]
["עסק","הנהלה וכלליות","CRM"]
["עסק","הנהלה וכלליות","אחר 1"]
["עסק","הנהלה וכלליות","אחר 2"]
["עסק","הנהלה וכלליות","אחר 3"]
["עסק","הנהלה וכלליות","אחר 4"]
["עסק","הנהלה וכלליות","אינטרנט "]
["עסק","הנהלה וכלליות","ארנונה "]
["עסק","הנהלה וכלליות","ביטוחים"]
["עסק","הנהלה וכלליות","דלק"]
["עסק","הנהלה וכלליות","הוצאות משרד"]
["עסק","הנהלה וכלליות","השתלמויות"]
["עסק","הנהלה וכלליות","חניה"]
["עסק","הנהלה וכלליות","חשמל"]
["עסק","הנהלה וכלליות","ייעוץ עסקי"]
["עסק","הנהלה וכלליות","מערכות מידע"]
["עסק","הנהלה וכלליות","משפטי"]
["עסק","הנהלה וכלליות","נסיעות ומוניות"]
["עסק","הנהלה וכלליות","רו\"ח"]
["עסק","הנהלה וכלליות","שכ\"ד "]
["עסק","הנהלה וכלליות","תקשורת"]
["עסק","חסכונות","פנסיה/ פקדון/ קה\"ל/ גמל"]
["עסק","מכירה ושיווק","קידום דיגיטל"]
["עסק","עלות המכר","חומרי גלם"]
["עסק","עלות המכר","קבלני משנה"]
["עסק","עלות המכר","שליחויות"]
["עסק","רשויות","ביטוח לאומי"]
["עסק","רשויות","מס הכנסה"]
["עסק","רשויות","מע\"מ"]
["עסק","שכר","הוצ' שכר עובדים "]
["עסק","שכר","משכורת לבעלי העסק"]
["פרטי","אוכל","אוכל בחוץ"]
["פרטי","אוכל","אוכל ומוצרי מכולת"]
["פרטי","אפלקיציות","אפליקציות"]
["פרטי","ביגוד והנעלה","ביגוד והנעלה"]
["פרטי","ביגוד והנעלה","משקפיים / עדשות"]
["פרטי","בית","ביטוח דירה"]
["פרטי","חסכון","ביטוח חיים"]
["פרטי","בית","ביטוח משכנתא"]
["פרטי","רכב","ביטוח רכב מקיף וחובה"]
["פרטי","בריאות","ביטוח רפואי פרטי"]
["פרטי","בריאות","קופ\"ח ביטוח משלים"]
["פרטי","בית","אחזקת בית ותיקונים"]
["פרטי","בית","ארנונה"]
["פרטי","בית","גז"]
["פרטי","בית","ועד בית/ מיסי ישוב"]
["פרטי","בית","חשמל"]
["פרטי","בית","כבלים/לווין"]
["פרטי","בית","מוצרים לבית"]
["פרטי","בית","מים"]
["פרטי","בית","משכנתא"]
["פרטי","בית","עוזרת/ גינון"]
["פרטי","בית","שכר דירה"]
["פרטי","בית","תמי4/נספרסו"]
["פרטי","בנקים","העברה בין חשבונות"]
["פרטי","בנקים","עמלות בנק וכרטיסי אשראי"]
["פרטי","בנקים","ריבית חובה בבנק"]
["פרטי","בריאות","טיפולי שיניים"]
["פרטי","בריאות","פסיכולוג/הוראה מתקנת"]
["פרטי","בריאות","תרופות/רפואה משלימה"]
["פרטי","הכנסות","הכנסה אחר"]
["פרטי","הכנסות","הכנסה אישה"]
["פרטי","הכנסות","הכנסה גבר"]
["פרטי","הכנסות","הכנסה משכ\"ד"]
["פרטי","הלוואות","החזרי הלוואות עו\"ש"]
["פרטי","הלוואות","החזרי הלוואות תלוש"]
["פרטי","הלוואות","הלוואות חוץ בנקאיות"]
["פרטי","הלוואות","חובות נוספים"]
["פרטי","חיות מחמד","חיות מחמד"]
["פרטי","חסכונות","חסכונות"]
["פרטי","חסכונות","מט\"ח"]
["פרטי","חסכונות","פנסיה/ פקדון/ קה\"ל/ גמל"]
["פרטי","טיפוח","מספרה"]
["פרטי","טיפוח","קוסמטיקה טיפולים"]
["פרטי","טיפוח","קוסמטיקה מוצרים"]
["פרטי","טיפוח","קוסמטיקה ציפורניים"]
["פרטי","טיפוח","קניות פארם"]
["פרטי","ילדים","מזונות"]
["פרטי","ילדים","מטפלת"]
["פרטי","ילדים","מעון/גן/צהרון"]
["פרטי","ילדים","ספרים/צעצועים"]
["פרטי","ילדים","קייטנות קיץ"]
["פרטי","ילדים","קצבת ילדים"]
["פרטי","ילדים","שיעורי עזר"]
["פרטי","ילדים","שמרטף"]
["פרטי","כרטיסי אשראי","הורדות כרטיסי אשראי"]
["פרטי","לימודים והשכלה","אוניברסיטה"]
["פרטי","לימודים והשכלה","בי\"ס וחומרי לימוד"]
["פרטי","מתנות","מתנות לארועים"]
["פרטי","מתנות","מתנות משפחתי/ ימי הולדת"]
["פרטי","פנאי","בילויים"]
["פרטי","פנאי","חוגים"]
["פרטי","פנאי","מכון כושר/קאנטרי קלאב/ חוגים"]
["פרטי","פנאי","נסיעה לחו\"ל"]
["פרטי","פנאי","נסיעות וחופשות"]
["פרטי","רכב","דלק"]
["פרטי","רכב","חניה"]
["פרטי","רכב","טיפולים ורישוי"]
["פרטי","רכב","כביש 6 / נתיב מהיר"]
["פרטי","רכב","ליסינג"]
["פרטי","רכב","תחבורה ציבורית"]
["פרטי","שונות","הוצאות לא מתוכננות"]
["פרטי","שונות","לוטו הגרלות"]
["פרטי","שונות","מזומן ללא מעקב"]
["פרטי","שונות","מנוי מפעל הפיס"]
["פרטי","שונות","סיגריות"]
["פרטי","שונות","שונות"]
["פרטי","שונות","תרומות ומעשרות"]
["פרטי","תקשורת","ספק אינטרנט"]
["פרטי","תקשורת","עיתונים"]
["פרטי","תקשורת","תקשורת - טלפונים"]
["פרטי","תקשורת","תשתית אינטרנט"]

{"sheet":"מחשבון עצמאי","index":6,"n_rows":43,"n_cols":6,"rows_kept":43,"cut":false,"hidden":true,"merged":[[0,1,0,4],[1,1,1,4],[20,1,21,1]]}
[null,"מחשבון ברוטו / נטו לעצמאיים עצמאי 2023"]
[null,"נא למלא את התאים הצהובים בלבד"]
[null,"הכנסה חודשית כולל מע\"מ",null,0]
[null,"הכנסה חודשית ללא מע\"מ",null,{"$f":"D3/1.17","v":0}]
[null,"פנסיה",4.4999999999999998E-2,{"$f":"IF(D4>$F$5/12, (F5/12*C5),D4*C5)","v":0},"עד תקרה שנתית של 225,600 ₪ הכנסה",225600]
[null,"קה\"ל",4.4999999999999998E-2,{"$f":"IF(D4>$F$5/12, (F5/12*C6),D4*C6)","v":0},"במידה ועברת את התקרה, המחשבון יתייחס למקס' האפשרי הפטור ממס"]
[null,"הוצאות חודשיות נוספות בעסק",null,0,"כל הוצאות העסק: ייצור, משכורות, הנהלה וכלליות..."]
[]
[null,"רווח / הפסד למס הכנסה (חודשי)",null,{"$f":"D4-D5-D6-D7","v":0},"ניתן לחשב לפי דוח רו\"ח מבוקר (ואז מתבטל הצורך בשורות מלמעלה)"]
[null,null,null,null,null,"מקס בלל"]
[null,"ביטוח לאומי",null,"מדרגות",null,43890]
[null,"ביטוח בריאות",3.1E-2,6331,{"$f":"IF($D$9<D12,$D$9*C12,D12*C12)","v":0}]
[null,null,0.05,null,{"$f":"IF($D$9>D12,IF($D$9>$F$11,(($F$11-D12)*C13),($D$9-D12)*C13))","v":false}]
[null,"ביטוח לאומי",2.87E-2,6331,{"$f":"IF($D$9<D14,$D$9*C14,D14*C14)","v":0}]
[null,null,0.1283,null,{"$f":"IF($D$9>D14,IF($D$9>$F$11,(($F$11-D14)*C15),($D$9-D14)*C15))","v":false}]
[null,"סה\"כ מס בריאות וביטוח לאומי",null,null,{"$f":"SUM(E12:E15)","v":0}]
[null,"מס הכנסה"]
[null,null,null,"מדרגת מס"]
[null,"מס הכנסה",0.1,6310,{"$f":"IF(D9>D19,D19*C19,0)","v":0}]
[null,null,0.14000000000000001,9055,{"$f":"IF($D$9>D19,IF($D$9>D20,(D20-D19)*C20,($D$9-D19)*C20),0)","v":0}]
[null,"ללא התייחסות לנקודות זיכוי",0.2,14530,{"$f":"IF($D$9>D20,IF($D$9>D21,(D21-D20)*C21,($D$9-D20)*C21),0)","v":0}]
[null,null,0.31,20200,{"$f":"IF($D$9>D21,IF($D$9>D22,(D22-D21)*C22,($D$9-D21)*C22),0)","v":0}]
[null,null,0.35,42030,{"$f":"IF($D$9>D22,IF($D$9>D23,(D23-D22)*C23,($D$9-D22)*C23),0)","v":0}]
[null,null,0.47,54130,{"$f":"IF($D$9>D23,IF($D$9>D24,(D24-D23)*C24,($D$9-D23)*C24),0)","v":0}]
[null,null,0.5,null,{"$f":"IF($D$9>D24,($D$9-D24)*C25,0)","v":0}]
[null,"סה\"כ מס הכנסה",null,null,{"$f":"SUM(E19:E25)","v":0}]
[]
[null,"הכנסה אמיתית לחישוב",null,{"$f":"D9-E16-E26","v":0},{"$f":"D28/D4","v":{"$error":"#DIV/0!"}}]
[]
[]
[]
[]
[]
[]
[]
[]
[]
[null,"הערות:"]
[null,"המחשבון הנ\"ל הינו הערכה בלבד, ואינו לוקח בחשבון נקודות זיכוי, החזרים והתקזזויות עם הרשויות."]
[null,"מטרת המחשבון הינה לתת לך הערכה של חישוב הנטו בעסק שלך."]
[null,"אין לראות במחשבון זה כלי לחישוב המיסים."]
[]
[null,"https://taxcalc.tax/"]

{"sheet":"עצמאי ","index":7,"n_rows":60,"n_cols":3,"rows_kept":60,"cut":false,"hidden":true,"merged":[[0,0,0,2]]}
["רווח והפסד שנתי / חודשי"]
["הכנסות",null,"ממוצע חודשי"]
["סהכ הכנסות ללא מע\"מ"]
[]
["עלות המכר/ייצור"]
["קניות סחורה"]
["ציוד וכלים"]
["אחר"]
["סהכ עלות המכר",{"$f":"SUM(B6:B8)","v":0},{"$f":"C3","v":0}]
[]
["רווח גולמי",{"$f":"B3-B9","v":0},{"$f":"C3-C9","v":0}]
[]
["הוצאות שכר"]
["משכורות"]
["ביטוח לאומי"]
["תגמולים מעביד"]
["פיצויים"]
["פנסיה"]
["קהל"]
["שווי למס"]
["מס מעסיקים"]
["סהכ עלויות שכר",{"$f":"SUM(B14:B21)","v":0},{"$f":"SUM(C18:C21)","v":0}]
[]
["הוצאות הנהלה וכלליות"]
["חשמל"]
["ארנונה ומים"]
["גז"]
["שכר דירה"]
["הוצאות משרדיות"]
["אחזקה"]
["טלפון בזק"]
["טלפון סלולרי"]
["מיקצועיות"]
["פרסום ושיווק"]
["אגרות ודמי חבר"]
["הוצאות רכב"]
["כיבוד ומתנות"]
["עמלות כרטיסי אשראי"]
["בגדי עבודה"]
["רואה חשבון"]
["אינטרנט ותקשורת"]
["הוצאות חניה"]
["הוצאות דואר"]
["עמלות אתרי פרסום"]
["רכב מספר"]
["רישוי"]
["אחר"]
["סהכ הנהלה וכלליות",{"$f":"SUM(B25:B47)","v":0},{"$f":"SUM(C34:C37)","v":0}]
[]
["רווח תפעולי ",{"$f":"B3-B9-B22-B48","v":0},{"$f":"C9-C22-C48","v":0}]
[]
["הוצאות מימון"]
["ריבית ועמלות בנקים"]
["ריבית הלוואה בנק פועלים"]
["ריבית הלוואה בנק בינלאומי"]
["דמי ניכיון"]
["ריבית ניכיון"]
["סהכ הוצאות מימון",{"$f":"SUM(B53:B57)","v":0}]
[]
["רווח נקי לפני מס",{"$f":"B50-B58","v":0},{"$f":"C50","v":0}]